Cogmind - Beta 15 @@@ ROGUE MODE // 2025.06.07 @ 05:47:19 Player: The Gourd Result: Destroyed by 47-SS4(R) with Subdweller Beam Cannon Performance ------------- Evolutions (0) 0 Regions Visited (1) 200 Robots Destroyed (23) 115 Value Destroyed (517) 517 Prototype IDs (0) 0 Alien Tech Used (0) 0 Bonus (0) 0 TOTAL SCORE: 832 Bonus ------- None Cogmind --------- Core Integrity 0/250 Matter 271/300 Energy 148/250 System Corruption 0% Temperature Cool (9) Movement Rolling (110) Ox2 Location -10/Materials Parts ------- > --- POWER (1) -------- Ion Engine > --- PROPULSION (2) --- Wheel > --- UTILITY (2) ------ Heat Sink Large Storage Unit > --- WEAPON (2) ------- Light Assault Rifle Light Assault Rifle > --- INVENTORY (15) --- Ion Engine Light Ion Engine Small Storage Unit ECM Suite EM Pulse Gun Light Assault Rifle Light Assault Rifle Mining Laser Peak State ------------ > --- POWER ------------ Light Nuclear Core > --- PROPULSION ------- Light Treads Light Treads > --- UTILITY ---------- Large Storage Unit Seismic Detector > --- WEAPON ----------- Assault Rifle Light Assault Rifle > --- INVENTORY -------- Ion Engine Ion Engine Light Ion Engine Light Treads Wheel Compact Wheel Small Storage Unit EM Pulse Gun Light Assault Rifle Mining Laser [Rating: 10] Favorites ----------- Power Ion Engine Engine Ion Engine Power Core Light Nuclear Core Propulsion Light Treads Treads Light Treads Wheel Wheel Utility Seismic Detector Device Seismic Detector Storage Large Storage Unit Weapon Assault Rifle Ballistic Gun Assault Rifle Build | -11 -10 ------- Run | Yrd Mat Slots Evolved . | . . Power . | . . Propulsion . | . . Utility . | . . Weapon . | . . Parts Attached 20 | 7 13 Power 4 | 1 3 Engine 3 | 1 2 Core 1 | . 1 Reactor . | . . Propulsion 7 | 2 5 Treads 3 | 2 1 Leg . | . . Wheel 4 | . 4 Hover . | . . Flight . | . . Utility 4 | 2 2 Device 2 | 1 1 Storage 2 | 1 1 Processor . | . . Hackware . | . . Protection . | . . Artifact . | . . Weapon 5 | 2 3 Energy Gun . | . . Energy Cannon . | . . Ballistic Gun 5 | 2 3 Ballistic Cannon . | . . Launcher . | . . Special Weapon . | . . Impact Weapon . | . . Slashing Weapon . | . . Piercing Weapon . | . . Special Melee Weapon . | . . Unidentified Prototypes . | . . Parts Lost 12 | . 12 Power 2 | . 2 Propulsion 6 | . 6 Utility 1 | . 1 Weapon 3 | . 3 Highest Loss Streak 4 | . 4 To Critical Strikes . | . . Average Backups 8 | 3 8 Power 2 | . 2 Propulsion 2 | 1 2 Utility 1 | . 1 Weapon 2 | 1 3 Tool/Special . | . . Unused Backups 7 | . 7 Power 1 | . 1 Propulsion 1 | . 1 Utility 1 | . 1 Weapon 4 | . 4 Tool/Special . | . . Average Slot Usage (%) 96 | . 96 Engine 7 | . 7 Core 3 | . 3 Treads 23 | . 23 Wheel 3 | . 3 Device 14 | . 14 Storage 14 | . 14 Ballistic Gun 27 | . 27 Peak Build Rating 10 | 7 10 Average Rating 7 | 5 7 On Entrance 3 | . 7 Naked Turns . | . . Heaviest Build 30 | 15 30 Greatest Support 40 | 40 40 Greatest Overweight (x) 3 | 3 2 Average Overweight (x) . | . . Largest Inventory Capacity 15 | 8 15 Average Capacity 13 | 7 13 Most Carried 12 | 5 12 Average Carried 8 | 3 8 Final Capacity 15 | 8 15 Final Carried 8 | 5 8 Class Distribution -------------------- 100% | Mutant Dominant Class ---------------- Mutant | -10/Materials Resources | -11 -10 ----------- Run | Yrd Mat Matter Collected 662 | 300 362 Remotely . | . . Salvage Created 717 | 103 614 Parts 55 | 7 48 Haulers Intercepted 1 | . 1 Recyclers Shooed 2 | 1 1 Parts Field Recycled . | . . Retrieved Matter . | . . Parts Self-Destructed . | . . Prevented . | . . Kills | -11 -10 ------- Run | Yrd Mat Combat Hostiles Destroyed 18 | . 18 Guns 18 | . 18 Classes Destroyed 6 | 2 4 Tunneler 1 | 1 . Hauler 1 | . 1 Recycler 1 | 1 . Watcher 2 | . 2 Swarmer 7 | . 7 Grunt 11 | . 11 Best Kill Streak 4 | 1 4 Combat Bots Only 3 | . 3 Max Kills in Single Turn 1 | 1 1 Gunslinging . | . . Exploded . | . . Melee . | . . Uniques/NPCs Destroyed . | . . Combat | -11 -10 -------- Run | Yrd Mat Hostile Shots Fired 157 | . 157 Missed 33 | . 33 Hits 124 | . 124 Projectile 124 | . 124 Critical Strikes 3 | . 3 Damage Taken 1392 | . 1392 Core 251 | . 251 Absorbed by Shields . | . . Core Remaining (%) 100 | 100 . Volleys Fired 84 | 5 79 Largest 2 | 2 2 Hottest 40 | 40 40 Shots Fired 166 | 10 156 Gun 166 | 10 156 Cannon . | . . Launcher . | . . Special . | . . Kinetic 166 | 10 156 Thermal . | . . Explosive . | . . Electromagnetic . | . . Robot Hit Streak 12 | 3 12 Robot Miss Streak 4 | 2 4 Penetration Max . | . . Secondary Targets 2 | . 2 Max Gunslinging Chain 1 | . 1 Shots Hit Robots 105 | 5 100 Core Hits 50 | 3 47 Critical Kills . | . . Critical Parts Destroyed 1 | . 1 Critical Strikes 1 | . 1 Destroy 1 | . 1 Melee Attacks . | . . Impact . | . . Slashing . | . . Piercing . | . . Sneak Attacks . | . . Combat Hostiles . | . . Follow-up Attacks . | . . Damage Inflicted 1094 | 78 1016 Guns 1094 | 78 1016 Cannons . | . . Explosions . | . . Melee . | . . Ramming . | . . Kinetic 1094 | 78 1016 Thermal . | . . Explosive . | . . Electromagnetic . | . . Impact . | . . Slashing . | . . Piercing . | . . Highest Corruption . | . . Average Corruption . | . . Corruption Purged . | . . Corruption Blocked . | . . Overload Shots . | . . Overflow Damage . | . . Projectiles . | . . Explosions . | . . Melee . | . . Knockbacks . | . . Impact . | . . Kinetic . | . . Secondary . | . . Self-Inflicted Damage . | . . Shots . | . . Rammed . | . . Targets Rammed . | . . Kicked . | . . Crushed . | . . Highest Temperature 234 | . 234 Average Temperature 18 | . 18 Received Heat Transfer 713 | . 713 Siege Activations . | . . Martial Activations . | . . Shielding Activations . | . . Robots Disrupted . | . . Combat Hostiles . | . . Robots Corrupted . | . . Combat Hostiles . | . . Parts Fried . | . . Impact Corruptions . | . . Robots Melted . | . . Combat Hostiles . | . . Parts Melted . | . . Heat Transferred . | . . Parts Sabotaged . | . . Parts Stolen . | . . Parts Stripped . | . . Power Chain Reactions . | . . Alert | -11 -10 ------- Run | Yrd Mat Maximum Alert Level . | . . Low Security (%) 100 | 100 100 Level 1 . | . . Level 2 . | . . Level 3 . | . . Level 4 . | . . Level 5 . | . . High Security . | . . Max Security . | . . Peak Influence 86 | 5 86 Initial . | . . Average 27 | . 31 Influence Increases 502 | 10 492 Destroy 0b10 Robot/C 360 | . 360 Destroy 0b10 Robot/NC 25 | 10 15 Destroy Leader 66 | . 66 Successful Hack 6 | . 6 Lose Combat Pursuer 45 | . 45 Influence Decreases 502 | 10 492 Time Decay 394 | 10 384 Lost Part 108 | . 108 Squads Dispatched 3 | . 3 Investigation 2 | . 2 Extermination . | . . Reinforcement 1 | . 1 Assault . | . . Garrison . | . . Intercept . | . . Searches Triggered . | . . Construction Impeded . | . . Haulers Reinforced . | . . Active Scanning Responses . | . . Cargo Convoy Interrupts . | . . Stealth | -11 -10 --------- Run | Yrd Mat Distress Signals 1 | . 1 Communications Jammed . | . . Distress Signals . | . . Times Spotted 32 | . 32 Peak Tracking Total 6 | . 6 Tactical Retreats 3 | . 3 Traps | -11 -10 ------- Run | Yrd Mat Traps Triggered 3 | . 3 Indirectly . | . . Trap Hack Attempts . | . . Triggered . | . . Disarmed . | . . Reprogrammed . | . . Reused . | . . Traps Extracted . | . . Installed . | . . Triggered . | . . Machines | -11 -10 ---------- Run | Yrd Mat Machines Disabled . | . . Max in Single Turn . | . . Machines Repaired . | . . Machines Dismantled . | . . Machines Sabotaged . | . . Overloaded Fab Kills . | . . Hacking | -11 -10 --------- Run | Yrd Mat Machines Accessed 5 | . 5 Terminals 5 | . 5 Fabricators . | . . Repair Stations . | . . Recycling Units . | . . Scanalyzers . | . . Garrison Access . | . . Total Hacks 15 | . 15 Successful 6 | . 6 Failed 9 | . 9 Catastrophic 1 | . 1 Database Lockouts . | . . Manual 15 | . 15 Terminals 15 | . 15 Fabricators . | . . Repair Stations . | . . Recycling Units . | . . Scanalyzers . | . . Garrison Access . | . . Terminal Hacks . | . . Fabricator Hacks . | . . Repair Station Hacks . | . . Recycling Unit Hacks . | . . Scanalyzer . | . . Garrison Access Hacks . | . . Unauthorized Hacks 6 | . 6 Terminals 6 | . 6 Track 1 | . 1 Botnet 1 | . 1 Skim 4 | . 4 Fabricators . | . . Repair Stations . | . . Recycling Units . | . . Scanalyzers . | . . Garrison Access . | . . Data Cores Recovered . | . . Used . | . . Hacking Detections 5 | . 5 Full Trace Events 1 | . 1 Feedback Events . | . . Feedback Blocked . | . . Robot Schematics Acquired . | . . Robots Built . | . . Authchips . | . . Time . | . . Total Robot Build Rating . | . . Part Schematics Acquired . | . . Parts Built . | . . Authchips . | . . Time . | . . Total Part Build Rating . | . . Parts Repaired . | . . Time . | . . Parts Recycled . | . . Recycled Matter . | . . Retrieved Matter . | . . Retrieved Components . | . . Parts Scanalyzed . | . . Part Schematics Acquired . | . . Parts Damaged . | . . Bothacking | -11 -10 ------------ Run | Yrd Mat Used RIF Installer . | . . Robots Hacked . | . . Non-combat . | . . Combat . | . . Robot Hacks Applied . | . . Relay Couplers Released . | . . Fabnet Peak Effective % . | . . Robots Rewired . | . . Allies Hacked . | . . Hacks Repelled . | . . Allies | -11 -10 -------- Run | Yrd Mat Total Allies . | . . Largest Group . | . . Highest-Rated Group . | . . Highest-Rated Ally . | . . Total Orders . | . . Ally Attacks . | . . Total Damage . | . . Kills . | . . Allies Corrupted . | . . Allies Melted . | . . Intel | -11 -10 ------- Run | Yrd Mat Active Infowar (turns) 1168 | 36 1132 Seismic 1168 | 36 1132 Robot Analysis Total . | . . Derelict Logs Recovered . | . . Drone Launches . | . . Drone Recoveries . | . . Exploration | -11 -10 ------------- Run | Yrd Mat Turns Passed 1343 | 135 1208 Spaces Moved 563 | 66 497 Core 10 | 10 . Treads 403 | 56 347 Legs . | . . Wheels 150 | . 150 Hover . | . . Flight . | . . Fastest Speed 50 | 50 95 Average Speed 151 | 152 150 Slowest Speed 240 | 200 240 Overloaded Moves . | . . Propulsion Burnouts . | . . Robots Hopped . | . . Potential Cave-ins . | . . Cave-ins Triggered . | . . Exploration Rate (%) 43 | 5 81 Regions Visited 1 Branch Regions . Pre-discovered Areas . | . . Known Exits Taken . | . . Unknown Exits Taken 1 | 1 . Scrap Searched . | . . Spaces Dug . | . . Terrain Destroyed . | . . Melee . | . . Projectile . | . . AOE . | . . Terrain Rammed . | . . Walls Destroyed . | . . Machines Disabled . | . . Actions | -11 -10 --------- Run | Yrd Mat Total 902 | 87 815 Wait 215 | 5 210 Move 562 | 65 497 Hop . | . . Pick Up 15 | 5 10 Fast Attach 11 | 7 4 Attach 9 | . 9 Detach . | . . Swap 5 | . 5 Drop 1 | . 1 Fire 84 | 5 79 Melee . | . . Ram . | . . Kick . | . . Crush . | . . Escape Stasis . | . . Rewire . | . . Trap . | . . Miscellaneous . | . . Route ------- -11/Scrapyard -10/Materials (discovered 3 exits: [*Mat] / [*Min x2]) History --------- Turn | Location | Event 21 | -11/Scrapyard | Discovered new exit (range 15) 136 | -11/Scrapyard | Entered Materials 308 | -10/Materials | Build established: Mutant 566 | -10/Materials | Discovered new exit (range 8) 898 | -10/Materials | Discovered new exit (range 11) 1136 | -10/Materials | Derelicts attacked the area 1168 | -10/Materials | Core integrity fell below 50% 1205 | -10/Materials | Lost 4 parts (1p3n) 1307 | -10/Materials | Discovered new exit (range 13) 1319 | -10/Materials | Lost 3 parts (1n1u1w) 1337 | -10/Materials | Core integrity fell below 20% 1344 | -10/Materials | Destroyed by 47-SS4(R) with Subdweller Beam Cannon Last Messages --------------- 01261_ Triggered Blade Trap. 01261_ Massive razor-sharp blades shoot up from within the floor. 01261_ Lgt. Assault Rifle severed. 01261_ Wheel severed. 01262_ Acquired Lgt. Assault Rifle. 01265_ Acquired Wheel. 01267_ S-10 Pest destroyed. 01268_ Seismic Detector destroyed. 01278_ S-10 Pest destroyed. 01279_ K-01 Serf collects debris. 01281_ S-10 Pest destroyed. 01283_ Acquired 34 matter. 01287_ Acquired Lgt. Assault Rifle. 01288_ Wheel destroyed. 01288_ Critical hit (Meltdown: +260). 01298_ Connecting with Terminal... 01307_ EXIT=FOUND 01327_ K-01 Serf collects debris. 01344_ Wheel destroyed. Map ----- +----------------------------------------------------+ | | | | | | | | | | | | | | | | | | | | | | | | | | | | | | | ?????????????????????????????????????????????????? | | ?????????????????????????????????????????????????? | | ?????????????????????????????????????????????????? | | ??????????????????#####################??????????? | | ??????????????????# #??????????? | | ??????????????????# #??????????? | | ??????????????????# < #??????????? | | ??????????????????# " #??????????? | | ??????????????????####+#### "" #??????????? | | ???????????????????# !# "" #??????????? | | ???????????????????# @# """ #??????????? | | ???????????????????# """ # "" #??????????? | | ???????????????????# """ R# """ !! #??????????? | | ???????????????????# """ ; """ !! #??????????? | | ???????????????????# #% "" #??????????? | | ???????????????????########= " #??????????? | | ??????????????????????????# "" #??????????? | | ??????????????????????????# T" ###????????? | | ??????????????????????????# "" #????????? | | ???????????????????######## #????????? | | ???????????????????# # #????????? | | ???????????????????# """ %# ##########????????? | | ???????????????????# """ # #?????????????????? | | #########??????????# """ #= #?????????????????? | | # #??????????# =#=* #?????????????????? | | # #??????????# = +* #?????????????????? | | # #??????############%= #?????????????????? | | # #??????# """ #" #?????????????????? | | # """ ######## """"" # ##+######????????## | | # """"" # # """"" # #????????# | | # """"" # """ + """"" + #????????# | | # """"" # """ # """ # +????????# | | # """ # """ # # #????????# | | # # #! ## #### ##???????# | | # # """ # ##= #" #???????# | +----------------------------------------------------+ Best States ------------- Heat Dissipation 35 Energy Generation 14 Energy Capacity 250 Matter Stores 300 Matter Capacity 300 Sight Range 16 Terrain Scan Density 10 Evasion (%) 41 Recoil Reduction 2 Item Schematics ----------------- None Robot Schematics ------------------ None Fabricated ------------ Nothing Repaired ---------- Nothing Alien Tech Used ----------------- None Achievements -------------- None Challenges ------------ None Game ------ Seed InsulationIonicDrillbomb Manual? 0 Play Time 00:11:42 Cumulative 124.4 hours Start 2025.06.07 @ 05:38:32 End 2025.06.07 @ 05:47:19 Sessions 1 Manual Loads 0 Difficulty Rogue Special Mode None Game No. 78 Rogue 78 Adventurer 0 Explorer 0 Win Type - Total 1 Types 1/0/0/0/0/0/0/0/0/0 Lore% 33 Gallery% 47 Achievement% 51 Wizard Run 0 Options --------- Layout 1 ASCII 0 Keyboard 1 Movement Vi Keybinds 1 Fullscreen 1 Font 32/SmallcapsGlow Map View 50x35 Zoom Use 0% Tactical HUD 1 Map Filters NONE Filters NONE Steam X RUN: 410edd86-23eb-43a1-8510-5fb6c5070e66